Cogmind - Beta 14 @@@ ROGUE MODE // 2024.08.21 @ 01:42:43 Player: Jammed Result: Self-destructed Performance ------------- Evolutions (5) 2500 Regions Visited (12) 2400 Robots Destroyed (241) 1205 Value Destroyed (7825) 7825 Prototype IDs (22) 440 Alien Tech Used (0) 0 Bonus (782) 782 TOTAL SCORE: 15152 Bonus ------- High Alert Combat Kills 224 Follower Combat Kills 586 Registered with UFD 300 Friendly Fire -328 Cogmind --------- Core Integrity 904/1000 Matter 287/300 Energy 600/600 System Corruption 5% Temperature Cool (0) Movement Treading (160) Location -5/Cetus Parts ------- > --- POWER (2) -------- Quantum Reactor Quantum Reactor > --- PROPULSION (4) --- Centrium Heavy Treads Centrium Heavy Treads > --- UTILITY (7) ------ Improved Cooling System Huge Storage Unit Advanced Sensor Array Core Analyzer Weapon Cycler Centrium Medium Armor Plating Improved Shield Generator > --- WEAPON (4) ------- Minigun Minigun Gauss Rifle Gauss Rifle > --- INVENTORY (25) --- Quantum Reactor Advanced Treads Medium Treads High-capacity Matter Pod (200) Transmission Jammer Centrium Medium Armor Plating Centrium Medium Armor Plating Centrium Medium Armor Plating Thermal Shield Thermal Shield Improved System Shield A0-MCA's Component Scanner High-powered Tractor Beam Cooled Plasma Cannon KE Penetrator KE Penetrator KE Penetrator Advanced KE Penetrator Advanced KE Penetrator Precision Grenade Launcher CPS Tube (2) CPS Tube (2) CPS Tube (2) CPS Tube (1) Peak State ------------ > --- POWER ------------ Quantum Reactor Quantum Reactor > --- PROPULSION ------- Centrium Heavy Treads Centrium Heavy Treads > --- UTILITY ---------- Improved Cooling System Huge Storage Unit Advanced Sensor Array Core Analyzer Weapon Cycler Centrium Medium Armor Plating Improved Shield Generator > --- WEAPON ----------- Minigun Gauss Rifle Gauss Rifle Advanced KE Penetrator > --- INVENTORY -------- Quantum Reactor Advanced Treads Medium Treads High-capacity Matter Pod Transmission Jammer Centrium Medium Armor Plating Centrium Medium Armor Plating Centrium Medium Armor Plating Thermal Shield Thermal Shield Improved System Shield A0-MCA's Component Scanner High-powered Tractor Beam Cooled Plasma Cannon Minigun KE Penetrator KE Penetrator KE Penetrator Advanced KE Penetrator Precision Grenade Launcher CPS Tube CPS Tube CPS Tube CPS Tube [Rating: 116] Favorites ----------- Power Cooled Deuterium Engine Engine Cooled Deuterium Engine Power Core Nuclear Core Reactor Quantum Reactor Propulsion Light Treads Treads Light Treads Leg Aluminum Leg Wheel Armored Huge Wheel Utility Huge Storage Unit Device Improved Sensor Array Storage Huge Storage Unit Processor Core Analyzer Protection Medium Reactive Plating Weapon Minigun Energy Gun Medium Laser Energy Cannon Cooled Plasma Cannon Ballistic Gun Minigun Launcher Heavy Rocket Launcher Special Weapon Mining Laser Impact Weapon Mace Build | -11 -10 -10 -9 -9 -8 -7 -7 -7 -7 -5 -5 -5 ------- Run | Yrd Mat Min Mat Min Mat Fac Sto Rec Scr Fac Ext Cet Slots Evolved 10 | . . . 2 . 2 2 . . . 4 . . Power 1 | . . . . . . . . . . 1 . . Propulsion 2 | . . . . . 1 1 . . . . . . Utility 5 | . . . 1 . 1 . . . . 3 . . Weapon 2 | . . . 1 . . 1 . . . . . . Parts Attached 202 | 2 15 1 37 5 46 8 46 . 5 12 15 10 Power 21 | . 3 . 4 . 1 1 8 . . 1 1 2 Engine 16 | . 3 . 4 . . 1 7 . . 1 . . Core 3 | . . . . . 1 . 1 . . . 1 . Reactor 2 | . . . . . . . . . . . . 2 Propulsion 32 | . 3 . 5 1 11 1 4 . 2 . 3 2 Treads 30 | . 2 . 5 1 11 1 3 . 2 . 3 2 Leg 1 | . 1 . . . . . . . . . . . Wheel 1 | . . . . . . . 1 . . . . . Hover . | . . . . . . . . . . . . . Flight . | . . . . . . . . . . . . . Utility 59 | 1 1 1 6 2 19 3 12 . 1 7 5 1 Device 32 | 1 . . 1 1 7 1 11 . 1 5 4 . Storage 3 | . 1 . 1 . 1 . . . . . . . Processor 3 | . . . 1 . . 1 . . . 1 . . Hackware . | . . . . . . . . . . . . . Protection 21 | . . 1 3 1 11 1 1 . . 1 1 1 Artifact . | . . . . . . . . . . . . . Weapon 90 | 1 8 . 22 2 15 3 22 . 2 4 6 5 Energy Gun 1 | 1 . . . . . . . . . . . . Energy Cannon 12 | . . . . . . 1 8 . . 1 2 . Ballistic Gun 64 | . 7 . 17 1 13 2 12 . 2 3 4 3 Ballistic Cannon . | . . . . . . . . . . . . . Launcher 3 | . . . 1 . . . 2 . . . . . Special Weapon 4 | . 1 . 1 . . . . . . . . 2 Impact Weapon 6 | . . . 3 1 2 . . . . . . . Slashing Weapon . | . . . . . . . . . . . . . Piercing Weapon . | . . . . . . . . . . . . . Special Melee Weapon . | . . . . . . . . . . . . . Unidentified Prototypes 14 | . . . 3 . . 1 7 . . . . 3 Parts Lost 26 | . . 1 1 2 19 . 1 . . . 2 . Power 1 | . . . . . 1 . . . . . . . Propulsion 4 | . . . . . 4 . . . . . . . Utility 11 | . . 1 1 2 6 . 1 . . . . . Weapon 10 | . . . . . 8 . . . . . 2 . Highest Loss Streak 15 | . . 1 1 2 15 . 1 . . . 1 . To Critical Strikes 1 | . . . . . 1 . . . . . . . Average Slot Usage (%) 94 | . 99 99 92 98 96 100 92 92 89 93 93 89 Engine 9 | . 13 14 10 11 6 6 6 7 7 11 10 2 Treads 18 | . 5 28 22 22 26 30 17 15 15 11 11 10 Leg 1 | . 22 . . . . . . . . . . . Wheel 2 | . . . . . . . 5 7 7 5 5 1 Device 12 | . 14 . . 8 15 14 14 15 12 23 23 23 Storage 8 | . 14 14 11 11 9 7 7 7 7 5 5 5 Processor 1 | . . . 4 1 . . . . . 5 5 5 Protection 7 | . . 13 10 10 8 7 7 7 7 4 5 5 Ballistic Gun 28 | . 25 28 32 31 26 29 29 30 30 22 22 22 Peak Build Rating 116 | 7 10 10 21 21 32 39 49 46 54 76 78 116 Average Rating 36 | 6 7 9 15 20 27 36 44 46 48 73 73 99 On Entrance 33 | 6 7 10 10 21 21 30 38 46 46 54 74 78 Naked Turns . | . . . . . . . . . . . . . Heaviest Build 149 | 15 32 34 100 101 123 128 134 129 129 147 142 149 Greatest Support 160 | 20 40 40 40 40 60 80 80 28 28 28 28 160 Greatest Overweight (x) 5 | . 1 . 2 2 2 1 4 4 4 5 5 4 Average Overweight (x) 2 | . . . 1 2 1 1 3 4 4 4 4 1 Largest Inventory Capacity 25 | 8 15 15 25 25 25 25 25 25 25 25 25 25 Average Capacity 23 | 8 13 15 22 25 25 25 25 25 25 25 25 25 Most Carried 25 | 7 15 15 25 25 25 25 25 25 25 25 25 25 Average Carried 21 | 6 10 14 20 23 22 20 24 25 24 24 24 24 Final Capacity 25 | 8 15 15 25 25 25 25 25 25 25 25 25 25 Final Carried 25 | 7 15 15 25 23 18 24 25 25 24 25 25 24 Class Distribution -------------------- 40% | Tank 27% | Scavenger-Tank 18% | Commander-Tank 12% | Mutant Dominant Class ---------------- Mutant | -10/Materials Mutant | -10/Mines Scavenger-Tank | -9/Materials Tank | -9/Mines Scavenger-Tank | -8/Materials Tank | -7/Factory Tank | -7/Storage Commander-Tank | -7/Recycling Commander-Tank | -7/Scraptown Tank | -5/Factory Tank | -5/Extension Scavenger-Tank | -5/Cetus Resources | -11 -10 -10 -9 -9 -8 -7 -7 -7 -7 -5 -5 -5 ----------- Run | Yrd Mat Min Mat Min Mat Fac Sto Rec Scr Fac Ext Cet Matter Collected 8019 | 244 333 124 1440 277 1534 62 1829 89 30 906 933 218 Remotely 529 | . . . . . 282 . . . . . 247 . Salvage Created 10219 | 160 407 89 2216 447 2198 62 2387 69 . 1096 945 143 Parts 610 | 15 36 3 141 31 111 3 123 5 . 79 50 13 Haulers Intercepted 15 | . 2 . 6 . 4 . 3 . . . . . Recyclers Shooed 5 | . . . 1 . 1 . 1 . . 2 . . Parts Field Recycled . | . . . . . . . . . . . . . Retrieved Matter . | . . . . . . . . . . . . . Parts Self-Destructed . | . . . . . . . . . . . . . Prevented . | . . . . . . . . . . . . . Kills | -11 -10 -10 -9 -9 -8 -7 -7 -7 -7 -5 -5 -5 ------- Run | Yrd Mat Min Mat Min Mat Fac Sto Rec Scr Fac Ext Cet Combat Hostiles Destroyed 172 | . 14 2 34 13 35 1 37 1 . 21 12 2 Guns 166 | . 14 2 34 13 35 1 31 1 . 21 12 2 AOE 6 | . . . . . . . 6 . . . . . Classes Destroyed 19 | 2 5 . 6 1 2 . 1 . . 1 1 . Worker 10 | . . . 4 . . . 4 . . 2 . . Builder 3 | . . . 1 . 2 . . . . . . . Tunneler 9 | 4 . . 2 . . . . . . 2 1 . Hauler 15 | . 2 . 6 . 4 . 3 . . . . . Recycler 12 | 1 . . 4 . 1 . 4 . . 1 1 . Mechanic 3 | . . . 1 . . . 2 . . . . . Operator 1 | . 1 . . . . . . . . . . . Watcher 15 | . 2 . 5 . 5 . 2 . . . 1 . Swarmer 43 | . 12 . 8 3 3 . 6 . . 9 2 . Grunt 64 | . 2 2 14 8 19 . 17 . . . 2 . Brawler 2 | . . . 1 1 . . . . . . . . Duelist 5 | . . . 1 . 3 . 1 . . . . . Protector 2 | . . . . 1 . . 1 . . . . . Sentry 33 | . . . 10 . 7 1 9 1 . . 5 . Specialist 2 | . . . . . 2 . . . . . . . Hunter 4 | . . . . . . . . . . 4 . . Programmer 12 | . . . . . . . 3 . . 8 1 . Heavy 1 | . . . . . 1 . . . . . . . Behemoth 2 | . . . . . . . . . . . 2 . Cetus Guard 2 | . . . . . . . . . . . . 2 Thug 1 | . . . . . . . 1 . . . . . Best Kill Streak 10 | 3 7 2 6 5 7 1 10 1 . 6 4 2 Combat Bots Only 8 | . 6 2 6 5 6 1 8 1 . 5 2 2 Max Kills in Single Turn 3 | 1 2 1 2 2 2 1 3 1 . 3 1 1 Gunslinging 2 | . 1 . 1 1 1 . 2 . . 1 . . Exploded 3 | . . . . . . . 3 . . . . . Melee . | . . . . . . . . . . . . . Uniques/NPCs Destroyed . | . . . . . . . . . . . . . Combat | -11 -10 -10 -9 -9 -8 -7 -7 -7 -7 -5 -5 -5 -------- Run | Yrd Mat Min Mat Min Mat Fac Sto Rec Scr Fac Ext Cet Hostile Shots Fired 1046 | . 59 23 107 49 319 18 259 18 . 109 70 15 Missed 294 | . 14 9 31 10 79 9 88 5 . 23 22 4 Damage Taken 7977 | . 391 183 959 495 3416 22 931 34 . 598 735 213 Core 917 | . 104 39 64 68 440 . 106 . . 47 49 . Absorbed by Shields 2113 | . . . . . 436 31 610 47 . 648 266 75 Ignored by Resistances 1163 | . . . . . 231 12 246 16 . 411 228 19 Regen/Repaired (Parts) 807 | . . . 180 . 290 . 270 . . 67 . . Core Remaining (%) 62 | 100 . 42 . 67 20 . . . 84 . . . Volleys Fired 540 | 8 52 10 97 26 124 3 106 4 . 53 49 8 Largest 4 | 2 2 2 3 3 3 4 4 4 . 4 4 4 Hottest 130 | 70 100 40 100 69 75 100 105 100 . 130 106 106 Shots Fired 1647 | 16 103 19 289 77 367 12 329 16 . 202 186 31 Gun 1605 | 16 102 19 288 77 367 12 297 16 . 199 184 28 Cannon 33 | . . . . . . . 28 . . 3 2 . Launcher 4 | . . . . . . . 4 . . . . . Special 5 | . 1 . 1 . . . . . . . . 3 Kinetic 1579 | 8 84 19 288 77 367 12 297 16 . 199 184 28 Thermal 61 | 8 19 . 1 . . . 28 . . 3 2 . Explosive 4 | . . . . . . . 4 . . . . . Electromagnetic . | . . . . . . . . . . . . . Robot Hit Streak 28 | 3 8 3 15 18 28 3 17 13 . 10 28 18 Robot Miss Streak 7 | 1 7 2 3 2 3 2 3 1 . 4 3 1 Penetration Max 1 | . . . . . . . . . . . . 1 Secondary Targets 34 | . 1 1 6 3 13 . 3 . . 5 1 1 Max Gunslinging Chain 2 | . 1 1 1 1 1 . 2 . . 1 1 1 Shots Hit Robots 1075 | 10 60 11 190 52 268 8 196 13 . 111 129 27 Core Hits 465 | 6 23 5 79 21 92 3 111 4 . 53 56 12 Critical Kills 2 | . . . . . 1 . 1 . . . . . Critical Parts Destroyed 6 | . . . 2 . . . 2 . . . 1 1 Critical Strikes 9 | . . . 2 . 1 . 3 . . . 1 2 Destroy 9 | . . . 2 . 1 . 3 . . . 1 2 Melee Attacks 16 | . . . 3 10 3 . . . . . . . Impact 16 | . . . 3 10 3 . . . . . . . Slashing . | . . . . . . . . . . . . . Piercing . | . . . . . . . . . . . . . Sneak Attacks . | . . . . . . . . . . . . . Combat Hostiles . | . . . . . . . . . . . . . Follow-up Attacks . | . . . . . . . . . . . . . Damage Inflicted 19484 | 128 752 132 3141 785 4341 135 4688 227 . 2269 2377 509 Guns 18418 | 128 749 132 3130 785 4341 135 3636 227 . 2269 2377 509 Cannons . | . . . . . . . . . . . . . Explosions 1034 | . . . . . . . 1034 . . . . . Melee . | . . . . . . . . . . . . . Ramming 32 | . 3 . 11 . . . 18 . . . . . Kinetic 18242 | 66 635 132 3130 785 4341 135 3636 227 . 2269 2377 509 Thermal 176 | 62 114 . . . . . . . . . . . Explosive 1034 | . . . . . . . 1034 . . . . . Electromagnetic . | . . . . . . . . . . . . . Impact . | . . . . . . . . . . . . . Slashing . | . . . . . . . . . . . . . Piercing . | . . . . . . . . . . . . . Highest Corruption 5 | . 2 2 . 1 . . 3 4 . 5 5 5 Average Corruption 2 | . 2 2 . 1 . . 2 3 . 2 5 5 Corruption Purged . | . . . . . . . . . . . . . Corruption Blocked . | . . . . . . . . . . . . . Effects 133 | . . 17 . 7 . . 30 22 . 12 40 5 Message Errors 36 | . . 4 . 4 . . 8 4 . 5 10 1 Matter Fused 21 | . . 2 . 1 . . 8 4 . 1 4 1 Heat Flow Errors 13 | . . 1 . . . . 4 2 . 1 5 . Energy Discharges 19 | . . 2 . . . . 5 3 . . 8 1 Parts Rejected 1 | . . . . . . . . . . 1 . . Parts Fused 3 | . . . . . . . 1 1 . . . 1 Data Loss (minor) 16 | . . 3 . . . . 2 5 . 1 4 1 Data Loss (major) 10 | . . 4 . . . . 1 1 . 1 3 . Misfires 3 | . . . . . . . 1 1 . . 1 . Alerts 3 | . . . . 1 . . . . . . 2 . Weapon Failures 8 | . . 1 . 1 . . . 1 . 2 3 . Overload Shots 12 | . . . . . . . 8 . . 2 2 . Effects 1 | . . . . . . . . . . 1 . . Energy Bleed 1 | . . . . . . . . . . 1 . . Overflow Damage 15 | . . . . . . . 15 . . . . . Projectiles . | . . . . . . . . . . . . . Explosions 15 | . . . . . . . 15 . . . . . Melee . | . . . . . . . . . . . . . Knockbacks . | . . . . . . . . . . . . . Impact . | . . . . . . . . . . . . . Kinetic . | . . . . . . . . . . . . . Secondary . | . . . . . . . . . . . . . Self-Inflicted Damage 50 | . . . . . . . 50 . . . . . Shots 1 | . . . . . . . 1 . . . . . Rammed 5 | . 1 . 2 . . . 2 . . . . . Targets Rammed 7 | . 2 . 3 . . . 2 . . . . . Kicked 1 | . 1 . . . . . . . . . . . Crushed 1 | . . . 1 . . . . . . . . . Highest Temperature 361 | 36 117 113 89 51 361 131 272 190 . 257 314 6 Average Temperature 65 | 19 44 24 22 12 74 69 92 79 . 97 90 6 Received Heat Transfer 2958 | . 36 111 369 201 1507 11 351 16 . . 332 24 Effects 1 | . . . . . 1 . . . . . . . Energy Bleed 1 | . . . . . 1 . . . . . . . Siege Activations . | . . . . . . . . . . . . . Robots Corrupted . | . . . . . . . . . . . . . Combat Hostiles . | . . . . . . . . . . . . . Parts Fried . | . . . . . . . . . . . . . Impact Corruptions . | . . . . . . . . . . . . . Robots Melted . | . . . . . . . . . . . . . Combat Hostiles . | . . . . . . . . . . . . . Parts Melted 2 | 1 . . . . 1 . . . . . . . Heat Transferred 518 | 185 333 . . . . . . . . . . . Parts Sabotaged . | . . . . . . . . . . . . . Parts Stolen . | . . . . . . . . . . . . . Parts Stripped . | . . . . . . . . . . . . . Power Chain Reactions . | . . . . . . . . . . . . . Alert | -11 -10 -10 -9 -9 -8 -7 -7 -7 -7 -5 -5 -5 ------- Run | Yrd Mat Min Mat Min Mat Fac Sto Rec Scr Fac Ext Cet Peak Influence 606 | 25 255 66 468 177 409 177 606 326 . 310 261 111 Initial 177 | . 16 26 . 117 16 177 20 163 . . 151 98 Average 191 | 11 111 25 256 51 269 114 324 171 . 65 115 104 Maximum Alert Level 2 | . 1 . 2 . 2 . 2 1 . 1 1 . Low Security (%) 55 | 100 92 100 13 100 22 100 35 74 . 96 87 100 Level 1 33 | . 7 . 82 . 62 . 17 25 . 3 12 . Level 2 10 | . . . 3 . 15 . 47 . . . . . Level 3 . | . . . . . . . . . . . . . Level 4 . | . . . . . . . . . . . . . Level 5 . | . . . . . . . . . . . . . High Security . | . . . . . . . . . . . . . Max Security . | . . . . . . . . . . . . . Squads Dispatched 26 | . 3 . 1 1 5 . 9 . . 7 . . Investigation 8 | . 2 . 1 . 2 . 1 . . 2 . . Extermination 8 | . . . . . . . 3 . . 5 . . Reinforcement 5 | . 1 . . . 3 . 1 . . . . . Assault 3 | . . . . 1 . . 2 . . . . . Garrison 2 | . . . . . . . 2 . . . . . Intercept . | . . . . . . . . . . . . . Searches Triggered . | . . . . . . . . . . . . . Construction Impeded . | . . . . . . . . . . . . . Haulers Reinforced 1 | . . . . . . . 1 . . . . . Active Scanning Responses . | . . . . . . . . . . . . . Cargo Convoy Interrupts . | . . . . . . . . . . . . . Stealth | -11 -10 -10 -9 -9 -8 -7 -7 -7 -7 -5 -5 -5 --------- Run | Yrd Mat Min Mat Min Mat Fac Sto Rec Scr Fac Ext Cet Distress Signals 13 | . 2 . 3 . 2 . 3 . . 1 1 1 Communications Jammed 16 | . . . . . . . . . . 16 . . Distress Signals 16 | . . . . . . . . . . 16 . . Times Spotted 231 | . 24 2 43 14 47 1 45 3 . 29 18 5 Peak Tracking Total 9 | . 8 2 6 5 6 1 9 1 . 7 4 5 Tactical Retreats 13 | . 1 . 3 . 6 . 1 . . 2 . . Traps | -11 -10 -10 -9 -9 -8 -7 -7 -7 -7 -5 -5 -5 ------- Run | Yrd Mat Min Mat Min Mat Fac Sto Rec Scr Fac Ext Cet Traps Triggered 13 | . 3 . 1 . 1 . 5 . . 1 2 . Indirectly . | . . . . . . . . . . . . . Trap Hack Attempts . | . . . . . . . . . . . . . Triggered . | . . . . . . . . . . . . . Disarmed . | . . . . . . . . . . . . . Reprogrammed . | . . . . . . . . . . . . . Reused . | . . . . . . . . . . . . . Traps Extracted . | . . . . . . . . . . . . . Installed . | . . . . . . . . . . . . . Triggered . | . . . . . . . . . . . . . Machines | -11 -10 -10 -9 -9 -8 -7 -7 -7 -7 -5 -5 -5 ---------- Run | Yrd Mat Min Mat Min Mat Fac Sto Rec Scr Fac Ext Cet Machines Disabled 8 | . . . . . . . 6 . . . 2 . Max in Single Turn 1 | . . . . . . . 1 . . . 1 . Garrison Access 1 | . . . . . . . 1 . . . . . Machines Repaired . | . . . . . . . . . . . . . Machines Dismantled . | . . . . . . . . . . . . . Machines Sabotaged . | . . . . . . . . . . . . . Overloaded Fab Kills . | . . . . . . . . . . . . . Hacking | -11 -10 -10 -9 -9 -8 -7 -7 -7 -7 -5 -5 -5 --------- Run | Yrd Mat Min Mat Min Mat Fac Sto Rec Scr Fac Ext Cet Machines Accessed 72 | . 8 . 11 . 9 . 13 10 5 5 11 . Terminals 48 | . 6 . 9 . 5 . 10 5 . 2 11 . Fabricators . | . . . . . . . . . . . . . Repair Stations 7 | . . . 1 . 2 . 2 . . 2 . . Recycling Units 7 | . 2 . . . . . . 5 . . . . Scanalyzers 4 | . . . 1 . 2 . . . . 1 . . Garrison Access 1 | . . . . . . . 1 . . . . . Total Hacks 209 | . 19 . 42 . 27 . 42 25 18 14 22 . Successful 130 | . 12 . 26 . 20 . 23 16 18 7 8 . Failed 78 | . 7 . 15 . 7 . 19 9 . 7 14 . Catastrophic 16 | . . . 1 . 1 . 7 2 . 1 4 . Database Lockouts 1 | . . . 1 . . . . . . . . . Manual 82 | . 15 . 18 . 6 . 18 18 . 2 4 1 Terminals 123 | . 15 . 31 . 13 . 25 12 . 5 22 . Fabricators . | . . . . . . . . . . . . . Repair Stations 37 | . . . 8 . 9 . 14 . . 6 . . Recycling Units 17 | . 4 . . . . . . 13 . . . . Scanalyzers 11 | . . . 3 . 5 . . . . 3 . . Garrison Access 3 | . . . . . . . 3 . . . . . Terminal Hacks 56 | . 5 . 13 . 6 . 5 1 18 2 6 . Record 13 | . . . . . . . . . 13 . . . Part Schematic 3 | . 1 . 1 . . . . 1 . . . . Robot Analysis 9 | . 2 . 1 . 2 . . . 4 . . . Open Door 6 | . . . . . . . 1 . . . 5 . Branch Access Points 1 | . . . 1 . . . . . . . . . Terminal Index 3 | . 1 . 1 . . . . . . 1 . . Alert Level 8 | . . . 2 . 2 . 2 . . 1 1 . Unreport Threat 3 | . . . 1 . . . 2 . . . . . Locate Traps 4 | . 1 . 3 . . . . . . . . . Hauler Manifests 1 | . . . 1 . . . . . . . . . Registered Components 1 | . . . . . 1 . . . . . . . Zone Layout 3 | . . . 2 . 1 . . . . . . . Derelict Proto ID Bank 1 | . . . . . . . . . 1 . . . Fabricator Hacks . | . . . . . . . . . . . . . Repair Station Hacks 27 | . . . 6 . 7 . 12 . . 2 . . Scan Component 14 | . . . 3 . 4 . 6 . . 1 . . Repair 13 | . . . 3 . 3 . 6 . . 1 . . Recycling Unit Hacks 8 | . 2 . . . . . . 6 . . . . Report Inventory 7 | . 2 . . . . . . 5 . . . . Retrieve Components 1 | . . . . . . . . 1 . . . . Scanalyzer 9 | . . . 3 . 4 . . . . 2 . . Insert Component 5 | . . . 2 . 2 . . . . 1 . . Analyze 4 | . . . 1 . 2 . . . . 1 . . Garrison Access Hacks 1 | . . . . . . . 1 . . . . . Seal Access 1 | . . . . . . . 1 . . . . . Unauthorized Hacks 29 | . 5 . 4 . 3 . 5 9 . 1 2 . Terminals 22 | . 3 . 4 . 3 . 5 4 . 1 2 . Track 3 | . . . 1 . . . 2 . . . . . Botnet 15 | . 2 . 2 . 2 . 2 4 . 1 2 . Operators 4 | . 1 . 1 . 1 . 1 . . . . . Fabricators . | . . . . . . . . . . . . . Repair Stations . | . . . . . . . . . . . . . Recycling Units 7 | . 2 . . . . . . 5 . . . . Tunnel 7 | . 2 . . . . . . 5 . . . . Scanalyzers . | . . . . . . . . . . . . . Garrison Access . | . . . . . . . . . . . . . Data Cores Recovered 1 | . 1 . . . . . . . . . . . Used . | . . . . . . . . . . . . . Hacking Detections 59 | . 7 . 9 . 9 . 12 6 . 5 11 . Full Trace Events 7 | . 1 . . . 1 . 1 2 . 2 . . Feedback Events 1 | . . . . . . . . 1 . . . . Corruption 1 | . . . . . . . . 1 . . . . Feedback Blocked . | . . . . . . . . . . . . . Robot Schematics Acquired . | . . . . . . . . . . . . . Robots Built . | . . . . . . . . . . . . . Authchips . | . . . . . . . . . . . . . Time . | . . . . . . . . . . . . . Total Robot Build Rating . | . . . . . . . . . . . . . Part Schematics Acquired 6 | . 1 . 2 . 2 . . 1 . . . . Parts Built . | . . . . . . . . . . . . . Authchips . | . . . . . . . . . . . . . Time . | . . . . . . . . . . . . . Total Part Build Rating . | . . . . . . . . . . . . . Parts Repaired 13 | . . . 3 . 3 . 6 . . 1 . . Time 489 | . . . 96 . 102 . 241 . . 50 . . Parts Recycled . | . . . . . . . . . . . . . Recycled Matter . | . . . . . . . . . . . . . Retrieved Matter . | . . . . . . . . . . . . . Retrieved Components 3 | . . . . . . . . 3 . . . . Parts Scanalyzed 4 | . . . 1 . 2 . . . . 1 . . Part Schematics Acquired 3 | . . . 1 . 2 . . . . . . . Parts Damaged 1 | . . . . . . . . . . 1 . . Bothacking | -11 -10 -10 -9 -9 -8 -7 -7 -7 -7 -5 -5 -5 ------------ Run | Yrd Mat Min Mat Min Mat Fac Sto Rec Scr Fac Ext Cet Used RIF Installer . | . . . . . . . . . . . . . Robots Hacked . | . . . . . . . . . . . . . Non-combat . | . . . . . . . . . . . . . Combat . | . . . . . . . . . . . . . Robot Hacks Applied . | . . . . . . . . . . . . . Relay Couplers Released . | . . . . . . . . . . . . . Fabnet Peak Effective % . | . . . . . . . . . . . . . Robots Rewired 7 | . . . . . . . . . . . 7 . Allies Hacked 1 | . . . . . . . . . . . 1 . Hacks Repelled . | . . . . . . . . . . . . . Allies | -11 -10 -10 -9 -9 -8 -7 -7 -7 -7 -5 -5 -5 -------- Run | Yrd Mat Min Mat Min Mat Fac Sto Rec Scr Fac Ext Cet Total Allies 31 | . . . . 1 . . 12 . . . 17 1 Largest Group 10 | . . . . 1 . . 10 10 10 10 10 10 Highest-Rated Group 415 | . . . . 31 . . 173 173 173 173 415 415 Highest-Rated Ally 159 | . . . . 31 . . 31 29 29 29 159 159 Total Orders 2 | . . . . . . . . . 2 . . . STAY 1 | . . . . . . . . . 1 . . . FOLLOW 1 | . . . . . . . . . 1 . . . Ally Attacks 168 | . . . . 3 . . 16 23 . 57 42 27 Total Damage 2561 | . . . . 41 . . 280 287 . 621 724 608 Kills 19 | . . . . 1 . . 1 2 . 5 7 3 Allies Corrupted . | . . . . . . . . . . . . . Allies Melted . | . . . . . . . . . . . . . Intel | -11 -10 -10 -9 -9 -8 -7 -7 -7 -7 -5 -5 -5 ------- Run | Yrd Mat Min Mat Min Mat Fac Sto Rec Scr Fac Ext Cet Robot Analysis Total 9 | . 2 . 1 . 2 . . . 4 . . . Derelict Logs Recovered 2 | . . 1 . 1 . . . . . . . . Drone Launches . | . . . . . . . . . . . . . Drone Recoveries . | . . . . . . . . . . . . . Exploration | -11 -10 -10 -9 -9 -8 -7 -7 -7 -7 -5 -5 -5 ------------- Run | Yrd Mat Min Mat Min Mat Fac Sto Rec Scr Fac Ext Cet Turns Passed 23408 | 71 1755 983 4029 1419 3870 694 2990 1082 2829 1758 1702 226 Spaces Moved 9938 | 26 867 592 1305 372 1267 276 1178 617 1741 755 838 104 Core . | . . . . . . . . . . . . . Treads 4256 | . 181 592 1305 372 1267 276 188 . . . . 75 Legs 712 | 26 686 . . . . . . . . . . . Wheels 4970 | . . . . . . . 990 617 1741 755 838 29 Hover . | . . . . . . . . . . . . . Flight . | . . . . . . . . . . . . . Fastest Speed 120 | 120 120 160 160 320 240 240 160 160 160 160 160 160 Average Speed 194 | 120 163 160 253 320 240 240 173 160 160 174 169 160 Slowest Speed 400 | 120 190 160 320 320 320 240 400 160 160 175 175 160 Overloaded Moves . | . . . . . . . . . . . . . Propulsion Burnouts . | . . . . . . . . . . . . . Robots Hopped . | . . . . . . . . . . . . . Cave-ins Triggered . | . . . . . . . . . . . . . Exploration Rate (%) 70 | 3 96 97 96 81 96 11 95 99 92 18 88 40 Regions Visited 12 Branch Regions 7 Pre-discovered Areas 8 | . 2 . . 1 . . . 5 . . . . Known Exits Taken 2 | . . . 1 . . 1 . . . . . . Unknown Exits Taken 10 | 1 1 1 . 1 1 . 1 1 1 1 1 . Scrap Searched 7 | . . 1 . 1 . . . . 5 . . . Spaces Dug 28 | . 1 . 4 5 3 . 11 . . 4 . . Terrain Destroyed 77 | . 1 . 4 5 4 . 59 . . 4 . . Melee 11 | . . . 3 5 3 . . . . . . . Projectile 26 | . 1 . 1 . 1 . 19 . . 4 . . AOE 40 | . . . . . . . 40 . . . . . Terrain Rammed . | . . . . . . . . . . . . . Walls Destroyed . | . . . . . . . . . . . . . Machines Disabled . | . . . . . . . . . . . . . Actions | -11 -10 -10 -9 -9 -8 -7 -7 -7 -7 -5 -5 -5 --------- Run | Yrd Mat Min Mat Min Mat Fac Sto Rec Scr Fac Ext Cet Total 12999 | 48 1101 608 1814 527 1835 303 1960 706 1791 1103 1051 152 Wait 1949 | 12 134 5 298 110 338 2 583 84 15 273 85 10 Move 9926 | 25 866 591 1304 371 1266 275 1177 616 1740 754 837 104 Hop . | . . . . . . . . . . . . . Pick Up 141 | 1 18 1 36 2 31 10 9 1 13 7 5 7 Fast Attach 51 | 1 5 . 9 . 5 2 15 . 3 1 5 5 Attach 47 | . 2 1 7 2 22 3 3 . . 4 2 1 Detach 6 | . . . . . 1 1 3 . . . 1 . Swap 104 | 1 8 . 21 3 19 3 28 . 2 7 8 4 Drop 148 | . 14 . 36 3 26 4 20 1 18 4 9 13 Fire 540 | 8 52 10 97 26 124 3 106 4 . 53 49 8 Melee 16 | . . . 3 10 3 . . . . . . . Ram 2 | . . . . . . . 2 . . . . . Kick 1 | . 1 . . . . . . . . . . . Crush 4 | . 1 . 3 . . . . . . . . . Escape Stasis 14 | . . . . . . . 14 . . . . . Rewire 50 | . . . . . . . . . . . 50 . Trap . | . . . . . . . . . . . . . Miscellaneous . | . . . . . . . . . . . . . Route ------- -11/Scrapyard -10/Materials (discovered 4 exits: *Mat x3 / [*Min]) -10/Mines (discovered 3 exits: *Mat x2 / [*Exi]) -9/Materials (discovered 4 exits: *Mat x3 / *Min) -9/Mines (discovered 2 exits: *Mat x2) -8/Materials (discovered 3 exits: [*Fac x3]) -7/Factory -7/Storage (discovered 2 exits: [*Fac] / *Rec) -7/Recycling (discovered 2 exits: *Fac / *Scr) -7/Scraptown (discovered 2 exits: *Fac x2) -5/Factory -5/Extension (discovered 2 exits: [*Fac] / *Cet) -5/Cetus History --------- Turn | Location | Event 15 | -11/Scrapyard | Discovered new exit (range 3) 72 | -11/Scrapyard | Entered Materials 237 | -10/Materials | Discovered new exit (range 16) 301 | -10/Materials | Build established: Mutant 494 | -10/Materials | Discovered new exit (range 14) 868 | -10/Materials | Discovered new exit (range 13) 1075 | -10/Materials | Discovered new exit (range 15) 1827 | -10/Materials | Entered Mines 1836 | -10/Mines | Core integrity fell below 50% 1893 | -10/Mines | Learned location of 1 exit from Materials 1903 | -10/Mines | Found a hidden stash of uninstalled traps 1955 | -10/Mines | Deemed a non-threat by the Exiles lab entrance 1955 | -10/Mines | Discovered new exit (range 5) 2091 | -10/Mines | Discovered new exit (range 13) 2528 | -10/Mines | Discovered new exit (range 15) 2810 | -10/Mines | Entered Materials 2810 | -9/Materials | Evolved 2 slots: Utility x1, Weapon x1 2811 | -9/Materials | Identified exit to Mines 3107 | -9/Materials | Build established: Tank 3293 | -9/Materials | Discovered new exit (range 10) 3643 | -9/Materials | Central database locked down 4131 | -9/Materials | Discovered new exit (range 7) 4245 | -9/Materials | Build established: Scavenger-Tank 5089 | -9/Materials | Repaired Hvy. Assault Rifle 5121 | -9/Materials | Repaired Hvy. Assault Rifle 5154 | -9/Materials | Repaired Hvy. Assault Rifle 6084 | -9/Materials | Discovered new exit (range 12) 6538 | -9/Materials | Build established: Tank 6839 | -9/Materials | Entered Mines 6975 | -9/Mines | Met a Derelict testing a Signal Generator 6979 | -9/Mines | Discovered new exit (range 7) 7698 | -9/Mines | A weapon hastily lodged in a ceiling crevice suddenly fell to the ground 7868 | -9/Mines | Discovered new exit (range 15) 8070 | -9/Mines | Excavation squad dispatched 8070 | -9/Mines | A large section of the Mines collapsed 8258 | -9/Mines | Entered Materials 8258 | -8/Materials | Evolved 2 slots: Propulsion x1, Utility x1 8564 | -8/Materials | Build established: Scavenger-Tank 8759 | -8/Materials | Discovered new exit (range 16) 10574 | -8/Materials | Discovered new exit (range 15) 11177 | -8/Materials | Core integrity fell below 50% 11246 | -8/Materials | Discovered new exit (range 10) 11248 | -8/Materials | Lost 15 parts (1p3n4u7w) 11771 | -8/Materials | Repaired Lgt. Treads 11811 | -8/Materials | Repaired Minigun 11965 | -8/Materials | Repaired Minigun 12128 | -8/Materials | Entered Factory 12128 | -7/Factory | Evolved 2 slots: Propulsion x1, Weapon x1 12520 | -7/Factory | Build established: Tank 12795 | -7/Factory | Discovered new exit (range 5) 12810 | -7/Factory | Identified exit to Storage 12822 | -7/Factory | Entered Storage 13814 | -7/Storage | Discovered new exit (range 13) 13878 | -7/Storage | Garrison activated, responded to threat 14036 | -7/Storage | Destroyed 8 combat bots 14331 | -7/Storage | Met a pair of Derelict thieves 14929 | -7/Storage | Repaired Minigun 14968 | -7/Storage | Repaired Minigun 15008 | -7/Storage | Repaired Minigun 15047 | -7/Storage | Repaired Hardlight Generator 15119 | -7/Storage | Repaired Cld. Deuterium Engine 15595 | -7/Storage | Repaired Imp. Sensor Array 15734 | -7/Storage | Assisted by bots powering up and referring to "LRC-V3" 15793 | -7/Storage | Used back door to open Recycling access 15793 | -7/Storage | Discovered new exit (range 3) 15812 | -7/Storage | Entered Recycling 15812 | -7/Recycling | Accompanied by 10 allies 15813 | -7/Recycling | Joined Warlord attack on 0b10 via Recycling 16030 | -7/Recycling | Build established: Commander-Tank 16244 | -7/Recycling | Scanned before Scraplab entrance 16284 | -7/Recycling | Discovered new exit (range 14) 16860 | -7/Recycling | Entered Scraplab 16873 | -7/Recycling | Discovered new exit (range 2) 16894 | -7/Recycling | Entered Scraptown 16894 | -7/Scraptown | Accompanied by 10 allies 16894 | -7/Scraptown | System corruption cleaned by C-Scrubber 17260 | -7/Scraptown | Discovered new exit (range 3) 17382 | -7/Scraptown | Visited Cave Peace 17441 | -7/Scraptown | Visited IN-MT5's Study 17481 | -7/Scraptown | Visited SPCMW 17590 | -7/Scraptown | Visited Red Mages 17612 | -7/Scraptown | Visited Spacefarers 17723 | -7/Scraptown | Visited Observation Area 17785 | -7/Scraptown | Visited Fellowship of the Rings 18054 | -7/Scraptown | Visited UFD Registry 18054 | -7/Scraptown | Registered with UFD as "Beamdome" 18115 | -7/Scraptown | Visited Curators Association 18199 | -7/Scraptown | Visited Derelict Rescue Squad 18254 | -7/Scraptown | Visited DA-N13 Charitable Foundation 18289 | -7/Scraptown | Visited Analyses Database 18316 | -7/Scraptown | Visited Science Guys 18398 | -7/Scraptown | Found DCF Scrap (30 items) 18428 | -7/Scraptown | Visited Scrap Suit Storage 18475 | -7/Scraptown | Visited A0-MCA Data Center 18500 | -7/Scraptown | Visited Junk Repository 18540 | -7/Scraptown | Visited Chapter 10 18643 | -7/Scraptown | Visited Research Penetration Think Tank 18822 | -7/Scraptown | Given an A- rating by A0-MCA 18828 | -7/Scraptown | Found A0-MCA's Component Scanner 19709 | -7/Scraptown | Discovered new exit (range 3) 19723 | -7/Scraptown | Entered Factory 19723 | -5/Factory | Accompanied by 10 allies 19723 | -5/Factory | Evolved 4 slots: Power x1, Utility x3 19819 | -5/Factory | Lost 5 allies 20140 | -5/Factory | Lost 3 allies 20390 | -5/Factory | Build established: Tank 20449 | -5/Factory | Repaired Hvy. Machine Gun 21383 | -5/Factory | Discovered new exit (range 16) 21481 | -5/Factory | Entered Extension 22233 | -5/Extension | Rescued a captive Derelict 22454 | -5/Extension | Spotted B-75 Beast 22475 | -5/Extension | Destroyed B-75 Beast 22505 | -5/Extension | Lost 3 allies 22517 | -5/Extension | Spotted B-75 Beast 22545 | -5/Extension | Destroyed B-75 Beast 22691 | -5/Extension | Rescued a captive Derelict 22691 | -5/Extension | Rescued a captive Derelict 22713 | -5/Extension | Rescued a captive Derelict 22714 | -5/Extension | Rescued a captive Derelict 22784 | -5/Extension | Rescued a captive Derelict 22864 | -5/Extension | Build established: Scavenger-Tank 22870 | -5/Extension | Lost 3 allies 22964 | -5/Extension | Rescued a captive Derelict 22977 | -5/Extension | Rescued a captive Derelict 23083 | -5/Extension | Rescued A7 23089 | -5/Extension | Rescued a captive Derelict 23139 | -5/Extension | Discovered new exit (range 10) 23141 | -5/Extension | Discovered new exit (range 6) 23183 | -5/Extension | Entered Cetus 23183 | -5/Cetus | Accompanied by 10 allies (A7) 23188 | -5/Cetus | Acquired a Cetus Manufacturing Module code from A7 23205 | -5/Cetus | Spotted Cetus Guard 23205 | -5/Cetus | Spotted Cetus Guard 23207 | -5/Cetus | Spotted Cetus Guard 23208 | -5/Cetus | Spotted Cetus Guard 23216 | -5/Cetus | Destroyed Cetus Guard 23219 | -5/Cetus | Allies destroyed Cetus Guard 23234 | -5/Cetus | Destroyed Cetus Guard 23236 | -5/Cetus | Allies destroyed Cetus Guard 23263 | -5/Cetus | Lost 6 allies 23376 | -5/Cetus | Started Cetus Manufacturing Module 23401 | -5/Cetus | Manufactured an Enhanced Grunt 23409 | -5/Cetus | Self-destructed Last Messages --------------- 23287_ Acquired Quantum Reactor. 23294_ Dropped Med. Reactive Plating. 23296_ Acquired Centrium Medium Armor Plating. 23305_ OPIR1P4V5YY:PTYUJC%R 23325_ Dropped Hvy. Machine Gun. 23326_ Acquired Corrupted Prototype Ballistic Gun. 23332_ Dropped Prc. Assault Rifle. 23332_ Acquired Prototype Ballistic Gun. 23333_ Identified Adv. KE Penetrator. 23336_ Acquired 14 matter. 23364_ System corrupted: Component data lost. 23376_ Connecting with Cetus Manufacturing Controls... 23376_ Current location identified: Cetus 23376_ Initiating process... Project G-00 loaded. >>\\CLGH Initiating process...Project G-00 loaded. 23380_ System corrupted: Matter fused (-7). 23401_ A7: "Whoa, this model is more advanced than what I remember! I wonder if the others have been keeping me out of the loop..." Map ----- +----------------------------------------------------+ | ?????????????????????????????????????????????????? | | ?????????????????????????????????????????????????? | | ?????????????????????????????????????????????????? | | ?????????????????????????????????????????????????? | | ?????????????????????????????????????????????????? | | ?????????????????????????????????????????????????? | | ?????????????????????????????????????????????????? | | ?????????????????????????????????????????????????? | | ?????????????????????????????????????????????????? | | ?????????????????????????????????????????????????? | | ?????????????????????????????????????????????????? | | ?????????????????????????????????????????????????? | | ?????????????????????????????????????????????????? | | ?????????" """ "????##???????????????????????????? | | ???????? """"""" ??#""??????????????????????????? | | ????#"""""""""""""""#"######?????????????????????? | | ????#""""" """ """""#""""""#?????????????????????? | | ????#""""""" """""""#" ""#?????????????????????? | | ????#""" " " """#T ""#?????????????????????? | | ###?#" """ """ "#" ""#?????????????????????? | | ### #?????????????????????? | | " g b +?????????????????????? | | % / h +?????????????????????? | | * " p +?????????????????????? | | %###" g #?????????????????????? | | ###?#" "" """"""""#T @ #?????????????????????? | | ????######++############"""#?????????????????????? | | ???????" ?????????????????????????????????????? | | ??????#" ?????????????????????????????????????? | | ?????? " ?????????????????????????????????????? | | ?????##" ?????????????????????????????????????? | | ?????? ?????????????????????????????????????? | | ?????" ??????????????????????????????????????? | | ?????" ??????????????????????????????????????? | | ?????" ??????????????????????????????????????? | | ?????## ??????????????????????????????????????? | | ?????? ??????????????????????????????????????? | | ???????? ???????????????????????????????????????? | | ?????????????????????????????????????????????????? | | ?????????????????????????????????????????????????? | | ?????????????????????????????????????????????????? | | ?????????????????????????????????????????????????? | | ?????????????????????????????????????????????????? | | ?????????????????????????????????????????????????? | | ?????????????????????????????????????????????????? | | ?????????????????????????????????????????????????? | | ?????????????????????????????????????????????????? | | ?????????????????????????????????????????????????? | | ?????????????????????????????????????????????????? | | ?????????????????????????????????????????????????? | +----------------------------------------------------+ Best States ------------- Heat Dissipation 67 Energy Generation 45 Energy Capacity 710 Matter Stores 300 Matter Capacity 300 Sight Range 16 Robot Scan Range 16 Terrain Scan Density 10 Jamming Range 12 Armor Coverage 225 Resistance: KI 30 Resistance: TH 20 Weapon Cycling 15 Evasion (%) 55 Core Analysis 6 Recoil Reduction 4 Kinecelleration 30 Item Schematics ----------------- Huge Storage Unit | -10/Materials | Hacked Hcp. Storage Unit | -9/Materials | Hacked Imp. Assault Rifle | -9/Materials | Scanalyzed Minigun | -8/Materials | Scanalyzed Med. Reactive Plating | -8/Materials | Scanalyzed Transmission Jammer | -7/Recycling | Hacked Robot Schematics ------------------ None Fabricated ------------ Nothing Alien Tech Used ----------------- None Achievements -------------- None Challenges ------------ None Game ------ Seed SpikedBiomechanicalLauncher Manual? 0 Play Time 02:21:34 Cumulative 208.1 hours Start 2024.08.18 @ 00:14:30 End 2024.08.21 @ 01:42:43 Sessions 9 Manual Loads 0 Difficulty Rogue Special Mode None Game No. 135 Rogue 135 Adventurer 0 Explorer 0 Win Type - Total 2 Types 1/0/0/1/0/0/0/0/0 Lore% 71 Gallery% 61 Achievement% 58 Wizard Run 0 Options --------- Layout 0 ASCII 0 Keyboard 0 Movement Mouse Keybinds 0 Fullscreen 1 Font 18/SmallcapsGlow Map View 76x50 Zoom Use 0% Tactical HUD 1 Map Filters NONE Filters NONE Steam 1 RUN: 3164465f-a48d-4bdc-9e51-68717d96562c